fUST/lending_fUST_20260107
["ID","MTS","AMOUNT","RATE_DAILY","PERIOD"]
[400587747,1767735039133,-500.0,0.00021,7]
[400587749,1767735039143,-277.05120127,0.00021,2]
[400587751,1767735039155,-1081.20658707,0.00021,10]
[400587753,1767735039165,-27032.71808146,0.00021,2]
[400587755,1767735039175,-2000.0,0.0002116,7]
[400587757,1767735039186,-254.5,0.00021401,2]
[400587759,1767735039195,-467.23514353,0.00021845,2]
[400587761,1767735039205,-239.892767,0.00021918,2]
[400587763,1767735039215,-568.06899724,0.0002196,10]
[400587765,1767735039224,-352.94,0.00022,2]
[400587767,1767735039234,-2846.21,0.00022,7]
[400587769,1767735039243,-84987.34441726,0.00022,2]
[400587771,1767735039252,-171.83181526,0.00022,10]
[400587773,1767735039261,-19696.50350082,0.00022,7]
[400587775,1767735039270,-195.0,0.00022082,6]
[400587777,1767735039279,-2000.0,0.00022102,7]
[400587779,1767735039288,-2099.80453228,0.00022463,16]
[400587781,1767735039298,-300.0,0.00022466,2]
[400587783,1767735039307,-450.0,0.00023014,2]
[400587785,1767735039316,-254.5,0.00023023,2]
[400587787,1767735039326,-2000.0,0.00023044,7]
[400587789,1767735039335,-279.35774616,0.00023188,2]
[400587791,1767735039345,-2200.0,0.00023386,2]
[400587793,1767735039354,-2200.0,0.00023409,2]
[400587795,1767735039364,-500.0,0.00023464,2]
[400587797,1767735039373,-600.0,0.00023562,2]
[400587799,1767735039384,-2200.0,0.00023659,2]
[400587801,1767735039394,-156.04,0.00023671,2]
[400587803,1767735039406,-720.0,0.00023706,2]
[400587805,1767735039415,-168.0,0.00023767,2]
[400587807,1767735039424,-2200.0,0.00023778,2]
[400587809,1767735039434,-2200.0,0.00023803,2]
[400587811,1767735039444,-168.0,0.00023835,2]
[400587813,1767735039455,-516.1318446,0.00023845,2]
[400587815,1767735039465,-15905.50371464,0.000239,3]
[400587817,1767735039474,-2000.0,0.00023986,7]
[400587819,1767735039484,-2393.20036498,0.00023986,19]
[400587821,1767735039493,-43901.28444321,0.00024,2]
[400587823,1767735039504,-1734.56052203,0.00024,2]
[400587825,1767735039514,-465.40086912,0.00024,2]
[400587827,1767735039523,-618.86,0.00024,14]
[400587829,1767735039532,-168.0,0.00024028,2]
[400587831,1767735039542,-2200.0,0.00024028,2]
[400587833,1767735039551,-2200.0,0.0002403,2]
[400587836,1767735039561,-2200.0,0.00024066,2]
[400587838,1767735039570,-240.04,0.000241,7]
[400587840,1767735039579,-284.75,0.000241,7]
[400587841,1767735039588,-750.0,0.0002411,2]
[400587843,1767735039597,-511358.26965662,0.00024142,2]
[400587845,1767735039607,-151.0,0.00024142,2]
[400587848,1767735039617,-151.0,0.00024142,2]
[400587850,1767735039626,-191.004961,0.00024142,2]
[400587851,1767735039636,-151.0,0.00024142,2]
[400587853,1767735039648,-151.0,0.00024142,2]
[400587855,1767735039657,-213.13224,0.00024142,2]
[400587857,1767735039667,-151.0,0.00024142,2]
[400587859,1767735039676,-213.13224,0.00024142,2]
[400587861,1767735039686,-221.765393,0.00024142,2]
[400587863,1767735039696,-213.13224,0.00024142,2]
[400587865,1767735039706,-213.13224,0.00024142,2]
[400587867,1767735039715,-176.786529,0.00024142,2]
[400587870,1767735039728,-176.786529,0.00024142,2]
[400587872,1767735039737,-176.786529,0.00024142,2]
[400587874,1767735039746,-176.786529,0.00024142,2]
[400587876,1767735039755,-151.0,0.00024142,2]
[400587877,1767735039764,-151.0,0.00024142,2]
[400587879,1767735039773,-151.0,0.00024142,2]
[400587881,1767735039783,-151.0,0.00024142,2]
[400587884,1767735039792,-264.296067,0.00024142,2]
[400587886,1767735039801,-151.0,0.00024142,2]
[400587887,1767735039810,-151.0,0.00024142,2]
[400587889,1767735039820,-151.0,0.00024142,2]
[400587892,1767735039829,-151.0,0.00024142,2]
[400587893,1767735039838,-2612.25,0.000242,14]
[400587896,1767735039847,-24961.46,0.000242,2]
[400587898,1767735039856,-195.96205508,0.00024249,2]
[400587900,1767735039865,-198.0,0.00024274,12]
[400587902,1767735039874,-2200.0,0.00024284,2]
[400587904,1767735039883,-720.0,0.00024393,2]
[400587906,1767735039892,-720.0,0.0002446,2]
[400587908,1767735039902,-720.0,0.00024498,2]
[400587910,1767735039912,-15905.49,0.000245,3]
[400587911,1767735039921,-720.0,0.00024537,2]
[400587913,1767735039930,-720.0,0.00024565,2]
[400587916,1767735039939,-15905.49,0.000246,3]
[400587917,1767735039948,-254.5,0.00024645,2]
[400587920,1767735039957,-156710.90453851,0.0002465,2]
[400587921,1767735039966,-513.75227377,0.0002465,2]
[400587923,1767735039975,-900.0,0.00024658,2]
[400587925,1767735039985,-380.0,0.00024658,2]
[400587928,1767735039994,-200.0,0.00024658,2]
[400587929,1767735040004,-500.0,0.00024658,2]
[400587931,1767735040013,-720.0,0.00024705,2]
[400587934,1767735040023,-9931.15793161,0.00024726,2]
[400587936,1767735040032,-16820.33315327,0.00024774,2]
[400587937,1767735040043,-500.0,0.00024795,2]
[400587940,1767735040053,-300.0,0.000248,2]
[400587942,1767735040062,-176.133271,0.000248,7]
[400587943,1767735040072,-415556.43095,0.000248,2]
[400587945,1767735040081,-153.743312,0.000248,7]
[400587947,1767735040091,-5000.0,0.000248,7]
[400587950,1767735040100,-5000.0,0.000248,7]
[400587952,1767735040110,-5000.0,0.000248,7]
[400587953,1767735040120,-5000.0,0.000248,7]
[400587955,1767735040129,-151.0,0.000248,7]
[400587958,1767735040138,-151.0,0.000248,7]
[400587960,1767735040148,-746.767727,0.000248,7]
[400587962,1767735040158,-746.767727,0.000248,7]
[400587965,1767735040177,-286.600994,0.000248,7]
[400587967,1767735040187,-746.767727,0.000248,7]
[400587969,1767735040196,-746.767727,0.000248,7]
[400587971,1767735040206,-151.0,0.000248,7]
[400587973,1767735040218,-151.0,0.000248,7]
[400587975,1767735040227,-213.13224,0.000248,7]
[400587977,1767735040237,-151.0,0.000248,7]
[400587979,1767735040246,-213.13224,0.000248,7]
[400587981,1767735040255,-213.13224,0.000248,7]
[400587983,1767735040264,-213.13224,0.000248,7]
[400587985,1767735040274,-176.786529,0.000248,7]
[400587987,1767735040283,-176.786529,0.000248,7]
[400587989,1767735040293,-176.786529,0.000248,7]
[400587992,1767735040302,-176.786529,0.000248,7]
[400587994,1767735040312,-162.040453,0.000248,7]
[400587996,1767735040321,-151.0,0.000248,7]
[400587998,1767735040331,-151.0,0.000248,7]
[400588000,1767735040339,-151.0,0.000248,7]
[400588002,1767735040348,-151.0,0.000248,7]
[400588004,1767735040357,-151.0,0.000248,7]
[400588006,1767735040366,-151.0,0.000248,7]
[400588008,1767735040375,-720.0,0.00024826,2]
[400588010,1767735040384,-2200.0,0.00024838,2]
[400588012,1767735040393,-151.0,0.000249,7]
[400588014,1767735040403,-151.0,0.000249,7]
[400588016,1767735040412,-151.0,0.000249,7]
[400588018,1767735040423,-151.0,0.000249,7]
[400588020,1767735040432,-151.0,0.000249,7]
[400588022,1767735040441,-151.0,0.000249,7]
[400588024,1767735040451,-151.0,0.000249,7]
[400588026,1767735040460,-333.867023,0.000249,7]
[400588028,1767735040469,-333.867023,0.000249,7]
[400588030,1767735040478,-333.867023,0.000249,7]
[400588032,1767735040488,-333.867023,0.000249,7]
[400588034,1767735040497,-181.138598,0.000249,7]
[400588036,1767735040506,-251.46189,0.000249,7]
[400588038,1767735040515,-409.331105,0.000249,7]
[400588040,1767735040525,-151.0,0.000249,7]
[400588042,1767735040534,-409.331105,0.000249,7]
[400588044,1767735040543,-151.0,0.000249,7]
[400588046,1767735040553,-409.331105,0.000249,7]
[400588048,1767735040562,-409.331105,0.000249,7]
[400588050,1767735040571,-151.0,0.000249,7]
[400588052,1767735040581,-151.0,0.000249,7]
[400588054,1767735040590,-151.0,0.000249,7]
[400588056,1767735040600,-151.0,0.000249,7]
[400588058,1767735040610,-151.0,0.000249,7]
[400588060,1767735040619,-258.099142,0.000249,7]
[400588062,1767735040629,-258.099142,0.000249,7]
[400588063,1767735040637,-258.099142,0.000249,7]
[400588066,1767735040649,-258.099142,0.000249,7]
[400588068,1767735040659,-151.0,0.000249,7]
[400588069,1767735040669,-363.862086,0.000249,7]
[400588072,1767735040679,-363.862086,0.000249,7]
[400588074,1767735040688,-363.862086,0.000249,7]
[400588075,1767735040697,-363.862086,0.000249,7]
[400588076,1767735040706,-151.0,0.000249,7]
[400588077,1767735040716,-151.0,0.000249,7]
[400588078,1767735040726,-151.0,0.000249,7]
[400588079,1767735040736,-178.486087,0.000249,7]
[400588080,1767735040746,-151.0,0.000249,7]
[400588081,1767735040755,-151.0,0.000249,7]
[400588082,1767735040764,-178.486087,0.000249,7]
[400588083,1767735040773,-151.0,0.000249,7]
[400588084,1767735040782,-151.0,0.000249,7]
[400588085,1767735040791,-178.486087,0.000249,7]
[400588086,1767735040800,-151.0,0.000249,7]
[400588087,1767735040810,-178.486087,0.000249,7]
[400588088,1767735040819,-151.0,0.000249,7]
[400588089,1767735040828,-166.442051,0.000249,7]
[400588091,1767735040837,-151.0,0.000249,7]
[400588093,1767735040848,-166.442051,0.000249,7]
[400588094,1767735040858,-166.442051,0.000249,7]
[400588096,1767735040867,-166.442051,0.000249,7]
[400588099,1767735040877,-151.0,0.000249,7]
[400588101,1767735040886,-151.0,0.000249,7]
[400588102,1767735040895,-151.0,0.000249,7]
[400588104,1767735040904,-631081.21536,0.000249,2]
[400588107,1767735040913,-158.624878,0.000249,7]
[400588108,1767735040923,-5000.0,0.000249,7]
[400588111,1767735040932,-5000.0,0.000249,7]
[400588113,1767735040941,-5000.0,0.000249,7]
[400588115,1767735040951,-5000.0,0.000249,7]
[400588117,1767735040960,-151.0,0.000249,7]
[400588119,1767735040968,-263.925561,0.000249,7]
[400588121,1767735040979,-746.767727,0.000249,7]
[400588123,1767735040989,-746.767727,0.000249,7]
[400588125,1767735040998,-746.767727,0.000249,7]
[400588127,1767735041008,-746.767727,0.000249,7]
[400588129,1767735041017,-151.0,0.000249,7]
[400588131,1767735041026,-151.0,0.000249,7]
[400588133,1767735041036,-213.13224,0.000249,7]
[400588135,1767735041045,-151.0,0.000249,7]
[400588137,1767735041055,-213.13224,0.000249,7]
[400588139,1767735041064,-213.13224,0.000249,7]
[400588141,1767735041073,-213.13224,0.000249,7]
[400588143,1767735041083,-176.786529,0.000249,7]
[400588145,1767735041092,-176.786529,0.000249,7]
[400588147,1767735041101,-176.786529,0.000249,7]
[400588149,1767735041111,-176.786529,0.000249,7]
[400588151,1767735041121,-151.0,0.000249,7]
[400588152,1767735041132,-151.000002,0.000249,7]
[400588154,1767735041142,-151.0,0.000249,7]
[400588156,1767735041152,-151.0,0.000249,7]
[400588159,1767735041162,-151.0,0.000249,7]
[400588161,1767735041171,-151.0,0.000249,7]
[400588162,1767735041180,-2200.0,0.00024926,2]
[400588164,1767735041190,-2000.0,0.00024928,7]
[400588166,1767735041199,-500.0,0.00024932,2]
[400588169,1767735041208,-111528.65958939,0.00025,15]
[400588170,1767735041217,-1084.88588646,0.00025,2]
[400588173,1767735041227,-11299.51643052,0.00025,2]
[400588175,1767735041236,-2673.15322453,0.00025,2]
[400588176,1767735041246,-32947.0653373,0.00025,2]
[400588179,1767735041255,-10364.0,0.00025,2]
[400588180,1767735041264,-500.0,0.00025,2]
[400588182,1767735041273,-300.0,0.00025,30]
[400588184,1767735041283,-1188.6506679,0.00025,2]
[400588187,1767735041292,-758.94232624,0.00025,2]
[400588189,1767735041301,-2200.0,0.00025001,7]
[400588190,1767735041310,-720.0,0.00025031,2]
[400588193,1767735041319,-2200.0,0.00025055,7]
[400588194,1767735041328,-500.0,0.00025069,2]
[400588196,1767735041338,-2200.0,0.00025176,7]
[400588198,1767735041347,-720.0,0.00025189,2]
[400588200,1767735041356,-720.0,0.00025194,2]
[400588202,1767735041366,-579.7994531,0.000252,5]
[400588204,1767735041375,-250.0,0.00025205,2]
[400588206,1767735041384,-880.39814706,0.00025205,2]
[400588208,1767735041393,-500.0,0.00025206,2]
[400588210,1767735041402,-720.0,0.00025261,2]
[400588212,1767735041411,-195.96205508,0.0002527,56]
[400588214,1767735041420,-500.0,0.00025309,7]
[400588216,1767735041430,-239.892767,0.00025342,2]
[400588218,1767735041439,-500.0,0.00025343,2]
[400588220,1767735041448,-720.0,0.0002536,2]
[400588222,1767735041457,-500.0,0.00025364,7]
[400588224,1767735041466,-720.0,0.00025368,2]
[400588226,1767735041476,-720.0,0.00025368,2]
[400588228,1767735041485,-720.0,0.00025388,2]
[400588230,1767735041495,-500.0,0.00025396,7]
[400588233,1767735041504,-2846.21,0.000254,7]
[400588235,1767735041514,-900.0,0.00025469,3]
[400588237,1767735041523,-2249.33256111,0.00025471,2]
[400588239,1767735041533,-3873.79157114,0.00025471,2]
[400588241,1767735041543,-500.0,0.0002548,2]
[400588243,1767735041552,-1000.0,0.000255,2]
[400588245,1767735041562,-720.0,0.00025502,2]
[400588247,1767735041571,-2696.46671746,0.00025509,22]
[400588249,1767735041581,-720.0,0.00025513,2]
[400588251,1767735041590,-720.0,0.00025545,2]
[400588266,1767735041730,-720.0,0.00025557,2]
[400588269,1767735041743,-500.0,0.00025585,7]
[400588270,1767735041752,-500.0,0.00025617,2]
[400588272,1767735041761,-168.0,0.00025632,2]
[400588274,1767735041771,-500.0,0.00025687,7]
[400588277,1767735041781,-350.0,0.00025753,2]
[400588279,1767735041790,-500.0,0.00025754,2]
[400588281,1767735041800,-2200.0,0.00025781,7]
[400588283,1767735041809,-565.02854567,0.00025845,2]
[400588284,1767735041818,-500.0,0.00025862,7]
[400588286,1767735041828,-2000.0,0.0002587,7]
[400588288,1767735041837,-720.0,0.00025874,2]
[400588290,1767735041847,-504.0,0.00025891,2]
[400588292,1767735041856,-234.06,0.00025994,2]
[400588294,1767735041865,-39765.87356579,0.00026,10]
[400588296,1767735041874,-529.55716524,0.00026,2]
[400588298,1767735041883,-18040.09749355,0.00026,30]
[400588299,1767735041892,-19900.0,0.00026,2]
[400588301,1767735041901,-161.0,0.00026,5]
[400588304,1767735041911,-1020.73276343,0.00026,2]
[400588305,1767735041920,-9931.15793158,0.00026123,2]
[400588308,1767735041929,-6283.1433788,0.00026132,2]
[400588309,1767735041939,-194.54818009,0.0002616,2]
[400588311,1767735041948,-2200.0,0.00026166,7]
[400588314,1767735041957,-500.0,0.00026182,7]
[400588315,1767735041966,-352.94,0.000262,2]
[400588317,1767735041976,-2200.0,0.00026258,7]
[400588319,1767735041985,-254.5,0.00026267,2]
[400588321,1767735041994,-2200.0,0.00026276,7]
[400588323,1767735042003,-450.0,0.00026301,2]
[400588325,1767735042012,-162.0,0.00026466,20]
[400588327,1767735042021,-500.0,0.00026508,7]
[400588329,1767735042030,-500.0,0.00026539,7]
[400588331,1767735042039,-200.0,0.0002654,14]
[400588333,1767735042049,-188.11386458,0.00026587,2]
[400588335,1767735042058,-2200.0,0.00026626,7]
[400588337,1767735042067,-500.0,0.00026721,7]
[400588339,1767735042076,-53813.93792126,0.00026778,14]
[400588341,1767735042085,-2000.0,0.00026812,7]
[400588343,1767735042094,-550.0,0.00026849,2]
[400588345,1767735042103,-2200.0,0.00026882,7]
[400588347,1767735042113,-2200.0,0.00026985,7]
[400588349,1767735042122,-240.04,0.00027,7]
[400588351,1767735042131,-284.75,0.00027,7]
[400588353,1767735042141,-24961.46,0.00027,2]
[400588355,1767735042151,-166.0,0.00027,7]
[400588357,1767735042160,-184.0,0.00027,7]
[400588359,1767735042169,-600.0,0.00027,14]
[400588361,1767735042179,-503.72461752,0.00027,2]
[400588363,1767735042188,-302781.61424461,0.00027,7]
[400588365,1767735042197,-1019.0,0.00027,2]
[400588368,1767735042206,-507.0,0.00027,7]
[400588371,1767735042216,-222.545523,0.00027,7]
[400588373,1767735042224,-151.0,0.00027,7]
[400588375,1767735042234,-213.13224,0.00027,7]
[400588377,1767735042243,-151.0,0.00027,7]
[400588379,1767735042252,-213.13224,0.00027,7]
[400588381,1767735042261,-213.13224,0.00027,7]
[400588383,1767735042271,-213.13224,0.00027,7]
[400588385,1767735042281,-176.786529,0.00027,7]
[400588388,1767735042290,-176.786529,0.00027,7]
[400588390,1767735042300,-176.786529,0.00027,7]
[400588392,1767735042309,-176.786529,0.00027,7]
[400588394,1767735042319,-151.0,0.00027,7]
[400588396,1767735042329,-177.372841,0.00027,7]
[400588398,1767735042339,-151.0,0.00027,7]
[400588400,1767735042348,-151.0,0.00027,7]
[400588402,1767735042357,-3008.99185521,0.00027032,24]
[400588403,1767735042366,-500.0,0.0002709,7]
[400588405,1767735042375,-2200.0,0.00027235,7]
[400588407,1767735042384,-500.0,0.00027299,7]
[400588409,1767735042393,-2612.25,0.000273,14]
[400588410,1767735042404,-2200.0,0.00027312,7]
[400588411,1767735042414,-2200.0,0.00027365,7]
[400588412,1767735042424,-1749.78,0.00027397,2]
[400588413,1767735042433,-650.0,0.00027397,5]
[400588414,1767735042442,-153.720433,0.00027397,7]
[400588415,1767735042452,-151.0,0.00027397,7]
[400588416,1767735042461,-151.0,0.00027397,7]
[400588417,1767735042471,-151.0,0.00027397,7]
[400588419,1767735042480,-273.427612,0.00027397,7]
[400588421,1767735042489,-500.0,0.00027397,5]
[400588422,1767735042499,-514.72943371,0.00027397,5]
[400588423,1767735042510,-45930.20768051,0.000275,2]
[400588424,1767735042519,-9931.15793158,0.00027519,2]
[400588425,1767735042529,-507.0,0.00027671,14]
[400588426,1767735042539,-15905.49,0.000277,3]
[400588427,1767735042549,-500.0,0.0002773,7]
[400588428,1767735042559,-628.0,0.00027734,2]
[400588429,1767735042568,-2145.0,0.00027734,2]
[400588430,1767735042577,-1365.0,0.00027734,2]
[400588431,1767735042588,-714.0,0.00027734,2]
[400588432,1767735042597,-194.752,0.00027734,2]
[400588433,1767735042607,-417.0,0.00027734,2]
[400588434,1767735042616,-2000.0,0.00027754,7]
[400588435,1767735042626,-1000.0,0.00027777,5]
[400588436,1767735042635,-2846.21,0.000278,7]
[400588437,1767735042645,-613.92524673,0.00027845,2]
[400588438,1767735042659,-254.5,0.0002789,2]
[400588439,1767735042668,-507.0,0.00027945,14]
[400588440,1767735042677,-750.0,0.00027945,5]
[400588441,1767735042687,-1000.0,0.00027945,5]
[400588442,1767735042697,-250.0,0.00027945,5]
[400588443,1767735042707,-250.0,0.00027945,5]
[400588444,1767735042716,-15316.1684334,0.00028,2]
[400588445,1767735042731,-519.93395126,0.00028,2]
[400588446,1767735042740,-1019.0,0.00028,2]
[400588447,1767735042750,-212.0,0.0002811,27]
[400588448,1767735042759,-2200.0,0.00028179,7]
[400588449,1767735042768,-507.0,0.00028219,14]
[400588450,1767735042778,-587.58501506,0.00028225,7]
[400588451,1767735042787,-2200.0,0.00028239,7]
[400588452,1767735042796,-500.0,0.00028391,7]
[400588453,1767735042805,-10000.0,0.00028393,2]
[400588454,1767735042817,-500.0,0.00028412,7]
[400588455,1767735042826,-2200.0,0.00028458,7]
[400588456,1767735042835,-507.0,0.00028493,14]
[400588457,1767735042844,-850.0,0.00028493,5]
[400588458,1767735042853,-1344.52633851,0.00028493,5]
[400588459,1767735042862,-350.0,0.00028493,5]
[400588460,1767735042871,-350.0,0.00028493,5]
[400588461,1767735042882,-80386.29981639,0.000285,7]
[400588462,1767735042890,-500.0,0.00028519,7]
[400588463,1767735042899,-2000.0,0.00028696,7]
[400588464,1767735042908,-26867.53519307,0.0002876,2]
[400588465,1767735042917,-28358.47353222,0.0002876,20]
[400588466,1767735042926,-4000.0,0.0002876,5]
[400588467,1767735042935,-19132.26998272,0.0002876,2]
[400588468,1767735042944,-1749.78,0.00028767,4]
[400588469,1767735042953,-166.0,0.00028767,14]
[400588470,1767735042962,-507.0,0.00028767,14]
[400588471,1767735042974,-507.0,0.00028767,14]
[400588472,1767735042983,-239.892767,0.00028767,60]
[400588473,1767735042992,-500.0,0.00028785,7]
[400588474,1767735043002,-172.37105898,0.000288,7]
[400588475,1767735043011,-9931.15793158,0.00028916,2]
[400588476,1767735043020,-500.0,0.00028959,7]
[400588477,1767735043029,-890.13787622,0.00029,2]
[400588478,1767735043039,-1019.0,0.00029,2]
[400588479,1767735043048,-950.0,0.00029041,5]
[400588480,1767735043058,-450.0,0.00029041,5]
[400588481,1767735043067,-450.0,0.00029041,5]
[400588482,1767735043077,-240.04,0.000291,7]
[400588483,1767735043086,-284.75,0.000291,7]
[400588484,1767735043096,-2612.25,0.000291,14]
[400588485,1767735043105,-24961.46,0.000291,2]
[400588486,1767735043114,-2200.0,0.00029159,7]
[400588487,1767735043124,-183.82,0.00029182,30]
[400588488,1767735043133,-157.17127242,0.00029219,5]
[400588489,1767735043142,-3164.20106546,0.00029283,7]
[400588490,1767735043152,-500.0,0.00029376,7]
[400588491,1767735043161,-500.0,0.00029379,7]
[400588492,1767735043171,-254.5,0.00029512,3]
[400588493,1767735043180,-995.3526357,0.00029519,7]
[400588494,1767735043189,-1050.0,0.00029589,5]
[400588495,1767735043198,-550.0,0.00029589,5]
[400588496,1767735043207,-550.0,0.00029589,5]
[400588497,1767735043217,-2846.21,0.000296,7]
[400588498,1767735043226,-2000.0,0.00029638,7]
[400588499,1767735043235,-250.041,0.00029687,2]
[400588500,1767735043244,-270.216,0.00029687,2]
[400588501,1767735043253,-150.448,0.00029687,2]
[400588502,1767735043263,-151.389,0.00029687,2]
[400588503,1767735043272,-250.0,0.00029687,2]
[400588504,1767735043281,-267.158,0.00029687,2]
[400588505,1767735043291,-1454.97939714,0.00029708,2]
[400588506,1767735043300,-5814.09767095,0.00029708,2]
[400588507,1767735043310,-2000.0,0.00029791,10]
[400588508,1767735043319,-2000.0,0.000298,10]
[400588509,1767735043328,-352.94,0.000298,2]
[400588510,1767735043337,-2000.0,0.000298,10]
[400588511,1767735043346,-2000.0,0.000298,10]
[400588512,1767735043355,-662.8219478,0.00029845,2]
[400588513,1767735043363,-507.0,0.00029918,14]
[400588514,1767735043372,-2579.17784983,0.0002995,2]
[400588515,1767735043381,-412.68505795,0.0003,10]
[400588516,1767735043390,-205.02791284,0.0003,30]
[400588517,1767735043399,-1539.161054,0.0003,7]
[400588518,1767735043408,-17929.07697112,0.0003,2]
[400588519,1767735043417,-684.43602892,0.0003,30]
[400588520,1767735043426,-321.23872157,0.0003,5]
[400588718,1767735045612,-8336.01790466,0.00016363,2]
[400588720,1767735045622,-5000.0,0.00016632,2]
[400588722,1767735045631,-600.0,0.00017323,2]
[400588725,1767735045643,-720.0,0.00019055,2]
[400588727,1767735045657,-864.0,0.0002096,2]
[400588728,1767735045666,-1000.0,0.00023056,10]
[400588730,1767735045676,-151.0,0.00024142,2]
[400588733,1767735045689,-151.0,0.00024142,2]
[400588736,1767735045698,-151.0,0.00024142,2]
[400588738,1767735045707,-151.0,0.00024142,2]
[400588740,1767735045718,-151.0,0.000248,7]
[400588742,1767735045727,-151.0,0.000248,7]
[400588744,1767735045736,-151.0,0.000248,7]
[400588746,1767735045745,-151.0,0.000248,7]
[400588748,1767735045754,-151.0,0.000249,7]
[400588762,1767735045876,-151.0,0.000249,7]
[400588764,1767735045886,-151.0,0.000249,7]
[400588766,1767735045895,-151.0,0.000249,7]
[400588768,1767735045904,-1000.0,0.00025362,10]
[400588770,1767735045914,-244.0,0.00025362,10]
[400588772,1767735045923,-151.0,0.00027,7]
[400588774,1767735045933,-151.0,0.00027,7]
[400588776,1767735045941,-151.0,0.00027,7]
[400588778,1767735045950,-1000.0,0.00027898,30]
[400588780,1767735045959,-492.0,0.00027898,30]
[400588782,1767735045969,-803.76127843,0.0003,5]
[400588784,1767735045978,-165.46,0.0003,5]
[400588786,1767735045988,-300.0,0.0003,60]
[400588788,1767735045997,-96.42240123,0.0003,2]
[400588790,1767735046008,-173.22597756,0.0003,2]
[400588792,1767735046019,-6092.02511956,0.0003,7]
[400588794,1767735046028,-1019.0,0.0003,7]
[400588796,1767735046037,-2874.83428113,0.000301,7]
[400588799,1767735046048,-157.17127242,0.00030124,10]
[400588800,1767735046057,-200.0,0.0003013,30]
[400588802,1767735046066,-1000.0,0.0003013,14]
[400588804,1767735046075,-151.0,0.0003013,14]
[400588806,1767735046084,-1749.78,0.00030136,6]
[400588808,1767735046093,-10000.0,0.00030136,30]
[400588810,1767735046103,-1150.0,0.00030137,5]
[400588812,1767735046112,-650.0,0.00030137,5]
[400588814,1767735046121,-650.0,0.00030137,5]
[400588816,1767735046131,-261.65588748,0.00030137,120]
[400588818,1767735046140,-521.0,0.00030205,14]
[400588820,1767735046150,-163.0,0.00030301,39]
[400588822,1767735046159,-373.33213074,0.00030312,2]
[400588982,1767735048607,172.96,8.683e-05,2]
[400589025,1767735049033,216.2,9.045e-05,2]
[400589860,1767735058062,5000.0,9.275e-05,2]
[400590122,1767735065965,4610.85,9.275e-05,2]
[400590124,1767735067387,-389.15,9.275e-05,2]
[400590125,1767735067413,-259.43,9.406e-05,2]
[400590126,1767735067440,-302.67,9.768e-05,2]
[400590127,1767735067464,-115.7628895,0.0001013,2]
[400590129,1767735097433,-251.19992171,0.00010029,2]
[400590130,1767735100824,-190.33105522,0.00010029,2]
[400590131,1767735103879,-250.4574325,0.00010029,2]
[400590132,1767735108457,-180.32183878,9.929e-05,2]
[400590133,1767735111076,-269.0967354,9.929e-05,2]
[400590134,1767735117396,-165.4879153,9.929e-05,2]